fUSD/lending_fUSD_20240327
["ID","MTS","AMOUNT","RATE_DAILY","PERIOD"]
[320691811,1711498252652,-500.0,0.00054794,120]
[320691812,1711498252661,-500.0,0.00054794,120]
[320691813,1711498252670,-500.0,0.00054794,120]
[320691814,1711498252679,-500.0,0.00054794,120]
[320691815,1711498252689,-500.0,0.00054794,120]
[320691816,1711498252699,-500.0,0.00054794,120]
[320691817,1711498252708,-173.49404,0.00054794,120]
[320691818,1711498252717,-173.49404,0.00054794,120]
[320691819,1711498252726,-500.0,0.00054794,120]
[320691820,1711498252736,-500.0,0.00054794,120]
[320691821,1711498252745,-500.0,0.00054794,120]
[320691822,1711498252755,-500.0,0.00054794,120]
[320691823,1711498252764,-280.94847738,0.00054794,120]
[320691824,1711498252881,-219.05152262,0.00054794,120]
[320691825,1711498252890,-201.67118936,0.00054794,120]
[320691826,1711498253113,-327.709021,0.00049315,120]
[320691827,1711498253123,-151.0,0.00049315,120]
[320691828,1711498253132,-327.709021,0.00049315,120]
[320691829,1711498253141,-151.0,0.00049315,120]
[320691830,1711498253150,-151.0,0.00049315,120]
[320691831,1711498253159,-322.00809784,0.000509,120]
[320691832,1711498253169,-298.32881064,0.00054794,120]
[320691833,1711498253178,-500.0,0.00054794,120]
[320691834,1711498253187,-500.0,0.00054794,120]
[320691835,1711498253197,-500.0,0.00054794,120]
[320691836,1711498253206,-394.00171825,0.00054794,30]
[320691837,1711498253219,-105.99828175,0.00054794,30]
[320691838,1711498253228,-500.0,0.00054794,120]
[320691839,1711498253237,-75.91171825,0.00054794,120]
[320691840,1711498253249,-383.57266039,0.00054794,120]
[320691841,1711498253261,-40.51562136,0.00054794,120]
[320691842,1711498253270,-500.0,0.00054794,120]
[320691843,1711498253278,-173.29437864,0.00054794,120]
[320691844,1711498253292,-326.70562136,0.00054794,120]
[320691845,1711498253301,-187.14315693,0.00054794,120]
[320691846,1711498253313,-300.0,0.00054794,120]
[320691847,1711498253324,-12.85684307,0.00054794,120]
[320691848,1711498253333,-151.0,0.00054794,120]
[320691849,1711498253342,-500.0,0.00054794,120]
[320691850,1711498253351,-211.82638663,0.00054794,120]
[320691851,1711498253363,-288.17361337,0.00054794,120]
[320691852,1711498253372,-500.0,0.00054794,120]
[320691853,1711498253381,-500.0,0.00054794,120]
[320691854,1711498253390,-500.0,0.00054794,120]
[320691855,1711498253399,-170.80767965,0.00054794,120]
[320691856,1711498253408,-151.0,0.00054794,120]
[320691857,1711498253417,-500.0,0.00054794,2]
[320691858,1711498253426,-500.0,0.00054794,120]
[320691859,1711498253435,-500.3723162,0.00054794,120]
[320691860,1711498253444,-183.67068891,0.00054794,2]
[320691861,1711498253453,-289.940319,0.00054794,120]
[320691862,1711498253462,-158.27179644,0.00054794,120]
[320691863,1711498253471,-500.0,0.00054794,120]
[320691864,1711498253480,-503.99616257,0.00054794,120]
[320691865,1711498253489,-159.99966799,0.00054794,120]
[320691866,1711498253498,-500.0,0.00054794,120]
[320691867,1711498253507,-500.0,0.00054794,120]
[320691868,1711498253517,-501.23246652,0.00054794,120]
[320691869,1711498253526,-134.05317521,0.00054794,120]
[320691870,1711498253542,-365.94682479,0.00054794,120]
[320691871,1711498253551,-500.0,0.00054794,120]
[320691872,1711498253560,-162.285676,0.00054794,120]
[320691873,1711498253570,-500.0,0.00054794,120]
[320691874,1711498253579,-505.92387174,0.00054794,120]
[320691875,1711498253588,-500.0,0.00054794,120]
[320691876,1711498253597,-162.285676,0.00054794,120]
[320691877,1711498253606,-500.0,0.00054794,120]
[320691878,1711498253615,-500.0,0.00054794,120]
[320691879,1711498253624,-304.54674114,0.00054794,30]
[320691880,1711498253634,-500.0,0.00054794,120]
[320691881,1711498253643,-500.0,0.00054794,120]
[320691882,1711498253652,-501.46496695,0.00054794,120]
[320691883,1711498253662,-500.95259345,0.00054794,120]
[320691884,1711498253671,-500.0,0.00054794,120]
[320691885,1711498253680,-500.0,0.00054794,120]
[320691886,1711498253689,-500.0,0.00054794,120]
[320691887,1711498253698,-500.75352909,0.00054794,120]
[320691888,1711498253707,-500.0,0.00054794,120]
[320691889,1711498253718,-500.0,0.00054794,120]
[320691890,1711498253727,-500.0,0.00054794,120]
[320691891,1711498253736,-500.0,0.00054794,120]
[320691892,1711498253746,-500.0,0.00054794,120]
[320691893,1711498253755,-500.0,0.00054794,120]
[320691894,1711498253765,-500.0,0.00054794,120]
[320691895,1711498253774,-500.0,0.00054794,120]
[320691896,1711498253785,-367.03969161,0.00054794,120]
[320691897,1711498253794,-504.15303236,0.00054794,120]
[320691898,1711498253803,-500.0,0.00054794,120]
[320691899,1711498253812,-500.0,0.00054794,120]
[320691900,1711498253821,-187.82,0.00054794,120]
[320691901,1711498253830,-520.39888798,0.00054794,120]
[320691902,1711498253840,-500.0,0.00054794,120]
[320691903,1711498253849,-500.0,0.00054794,120]
[320691904,1711498253858,-500.0,0.00054794,120]
[320691905,1711498253867,-406.92688227,0.00054794,120]
[320691906,1711498253877,-338.41144803,0.00054794,120]
[320691907,1711498253886,-500.0,0.00054794,120]
[320691908,1711498253896,-213.1548194,0.00054794,120]
[320691909,1711498253905,-220.29985599,0.00054794,120]
[320691910,1711498253918,-279.70014401,0.00054794,120]
[320691911,1711498253927,-449.63561599,0.00054794,120]
[320691912,1711498253940,-50.36438401,0.00054794,120]
[320691913,1711498253949,-438.62847817,0.00054794,120]
[320691914,1711498253961,-61.37152183,0.00054794,120]
[320691915,1711498253971,-367.62847817,0.00054794,120]
[320691916,1711498253983,-132.37152183,0.00054794,120]
[320691917,1711498253993,-500.0,0.00054794,120]
[320691918,1711498254004,-500.0,0.00054794,120]
[320691919,1711498254014,-500.0,0.00054794,120]
[320691920,1711498254023,-500.0,0.00054794,120]
[320691921,1711498254035,-500.0,0.00054794,120]
[320691922,1711498254046,-500.0,0.00054794,120]
[320691923,1711498254055,-500.0,0.00054794,120]
[320691924,1711498254064,-500.0,0.00054794,120]
[320691925,1711498254075,-500.0,0.00054794,120]
[320691926,1711498254083,-500.0,0.00054794,120]
[320691927,1711498254095,-636.55,0.00054794,120]
[320691928,1711498254104,-238.74,0.00054794,120]
[320691929,1711498254114,-500.0,0.00054794,120]
[320691930,1711498254123,-500.0,0.00054794,120]
[320691931,1711498254133,-500.0,0.00054794,120]
[320691932,1711498254143,-500.0,0.00054794,120]
[320691933,1711498254152,-500.0,0.00054794,120]
[320691934,1711498254161,-500.0,0.00054794,120]
[320691935,1711498254170,-500.0,0.00054794,120]
[320691936,1711498254179,-572.92,0.00054794,120]
[320691937,1711498254188,-473.98705495,0.00054794,120]
[320691938,1711498254198,-500.0,0.00054794,120]
[320691939,1711498254207,-500.0,0.00054794,2]
[320691940,1711498254216,-500.0,0.00054794,120]
[320691941,1711498254225,-500.0,0.00054794,120]
[320691942,1711498254234,-466.6,0.00054794,120]
[320691943,1711498254243,-500.0,0.00054794,120]
[320691944,1711498254252,-500.0,0.00054794,120]
[320691945,1711498254261,-252.84,0.00054794,120]
[320691946,1711498254270,-500.0,0.00054794,120]
[320691947,1711498254279,-155.27,0.00054794,120]
[320691948,1711498254291,-500.0,0.00054794,120]
[320691949,1711498254301,-500.0,0.00054794,120]
[320691950,1711498254311,-500.0,0.00054794,120]
[320691951,1711498254321,-438.41185265,0.00054794,120]
[320691952,1711498254331,-223.48,0.00054794,120]
[320691953,1711498254341,-448.41,0.00054794,120]
[320691954,1711498254351,-500.0,0.00054794,120]
[320691955,1711498254361,-500.0,0.00054794,120]
[320691956,1711498254370,-524.63,0.00054794,120]
[320691957,1711498254379,-500.0,0.00054794,120]
[320691958,1711498254388,-500.0,0.00054794,120]
[320691959,1711498254397,-500.0,0.00054794,120]
[320691960,1711498254407,-500.0,0.00054794,120]
[320691961,1711498254417,-500.0,0.00054794,120]
[320691962,1711498254427,-607.2,0.00054794,120]
[320691963,1711498254437,-500.0,0.00054794,120]
[320691964,1711498254449,-500.0,0.00054794,120]
[320691965,1711498254459,-498.20590352,0.00054794,120]
[320691966,1711498254474,-1.79409648,0.00054794,120]
[320691967,1711498254483,-500.0,0.00054794,120]
[320691968,1711498254492,-500.0,0.00054794,120]
[320691969,1711498254502,-576.56,0.00054794,120]
[320691970,1711498254512,-500.0,0.00054794,120]
[320691971,1711498254522,-500.0,0.00054794,120]
[320691972,1711498254531,-180.17780383,0.00054794,120]
[320691973,1711498254547,-319.82219617,0.00054794,120]
[320691974,1711498254557,-500.0,0.00054794,120]
[320691975,1711498254566,-500.0,0.00054794,120]
[320691976,1711498254575,-147.4752139,0.00054794,120]
[320691977,1711498254601,-327.709021,0.00049315,120]
[320691978,1711498254611,-151.0,0.00049315,120]
[320691979,1711498254621,-352.5247861,0.00054794,120]
[320691980,1711498254630,-474.25,0.00054794,120]
[320691981,1711498254639,-500.0,0.00054794,120]
[320691982,1711498254648,-145.10230217,0.00054794,120]
[320691983,1711498254660,-354.89769783,0.00054794,120]
[320691984,1711498254669,-500.0,0.00054794,120]
[320691985,1711498254678,-345.10230217,0.00054794,120]
[320691986,1711498254689,-154.89769783,0.00054794,120]
[320691987,1711498254699,-317.47743472,0.00054794,120]
[320691988,1711498254710,-182.52256528,0.00054794,120]
[320691989,1711498254719,-183.91340381,0.00054794,120]
[320691990,1711498254731,-316.08659619,0.00054794,120]
[320691991,1711498254740,-500.0,0.00054794,120]
[320691992,1711498254749,-500.0,0.00054794,120]
[320691993,1711498254759,-178.18579371,0.00054794,120]
[320691994,1711498254768,-500.0,0.00054794,120]
[320691995,1711498254777,-500.0,0.00054794,120]
[320691996,1711498254788,-323.48239389,0.00054794,120]
[320691997,1711498254799,-500.0,0.00054794,120]
[320691998,1711498254808,-500.0,0.00054794,120]
[320691999,1711498254818,-500.0,0.00054794,120]
[320692000,1711498254827,-4.53678386,0.00054794,120]
[320692001,1711498254839,-495.46321614,0.00054794,120]
[320692002,1711498254848,-500.0,0.00054794,120]
[320692003,1711498254857,-500.0,0.00054794,120]
[320692004,1711498254867,-500.0,0.00054794,120]
[320692005,1711498254876,-500.0,0.00054794,120]
[320692006,1711498254885,-500.0,0.00054794,120]
[320692007,1711498254894,-500.0,0.00054794,120]
[320692008,1711498254903,-500.0,0.00054794,120]
[320692009,1711498254913,-500.0,0.00054794,120]
[320692010,1711498254922,-500.0,0.00054794,120]
[320692011,1711498254931,-500.0,0.00054794,120]
[320692012,1711498254941,-500.0,0.00054794,120]
[320692013,1711498254950,-500.0,0.00054794,120]
[320692014,1711498254960,-500.0,0.00054794,120]
[320692015,1711498254969,-500.0,0.00054794,120]
[320692016,1711498254979,-500.0,0.00054794,120]
[320692017,1711498254989,-500.0,0.00054794,120]
[320692018,1711498255000,-500.0,0.00054794,120]
[320692019,1711498255010,-500.0,0.00054794,120]
[320692020,1711498255021,-500.0,0.00054794,120]
[320692021,1711498255032,-500.0,0.00054794,120]
[320692022,1711498255048,-500.0,0.00054794,120]
[320692023,1711498255059,-1763.18,0.00054794,120]
[320692024,1711498255069,-504.69,0.00054794,120]
[320692025,1711498255078,-500.0,0.00054794,120]
[320692026,1711498255088,-635.86,0.00054794,120]
[320692027,1711498255098,-500.0,0.00054794,120]
[320692028,1711498255107,-500.0,0.00054794,120]
[320692029,1711498255118,-195.32,0.00054794,120]
[320692030,1711498255127,-500.0,0.00054794,120]
[320692031,1711498255136,-500.0,0.00054794,120]
[320692032,1711498255146,-523.65,0.00054794,120]
[320692033,1711498255156,-500.0,0.00054794,120]
[320692034,1711498255167,-347.75,0.00054794,120]
[320692035,1711498255177,-500.0,0.00054794,120]
[320692036,1711498255186,-316.46648621,0.00054794,120]
[320692037,1711498255196,-500.0,0.00054794,120]
[320692038,1711498255206,-500.0,0.00054794,120]
[320692039,1711498255216,-500.0,0.00054794,120]
[320692040,1711498255226,-500.0,0.00054794,120]
[320692041,1711498255236,-586.61467974,0.00054794,120]
[320692042,1711498255246,-500.0,0.00054794,120]
[320692043,1711498255256,-500.0,0.00054794,120]
[320692044,1711498255266,-500.0,0.00054794,120]
[320692045,1711498255276,-500.0,0.00054794,120]
[320692046,1711498255287,-500.0,0.00054794,120]
[320692047,1711498255296,-547.25,0.00054794,120]
[320692048,1711498255308,-500.0,0.00054794,120]
[320692049,1711498255317,-500.0,0.00054794,120]
[320692050,1711498255327,-500.0,0.00054794,120]
[320692051,1711498255337,-500.0,0.00054794,120]
[320692052,1711498255346,-500.0,0.00054794,120]
[320692053,1711498255355,-500.0,0.00054794,120]
[320692054,1711498255364,-500.0,0.00054794,21]
[320692055,1711498255375,-500.0,0.00054794,120]
[320692056,1711498255385,-500.0,0.00054794,120]
[320692057,1711498255395,-500.0,0.00054794,120]
[320692058,1711498255405,-500.0,0.00054794,120]
[320692059,1711498255414,-500.0,0.00054794,120]
[320692060,1711498255424,-500.0,0.00054794,120]
[320692061,1711498255434,-500.0,0.00054794,120]
[320692062,1711498255444,-500.0,0.00054794,120]
[320692063,1711498255453,-500.0,0.00054794,120]
[320692064,1711498255463,-500.0,0.00054794,120]
[320692065,1711498255472,-804.3,0.00054794,120]
[320692066,1711498255482,-500.0,0.00054794,120]
[320692067,1711498255491,-545.75,0.00054794,120]
[320692068,1711498255500,-500.0,0.00054794,120]
[320692069,1711498255513,-607.86,0.00054794,120]
[320692070,1711498255522,-500.0,0.00054794,120]
[320692071,1711498255532,-500.0,0.00054794,120]
[320692072,1711498255544,-500.0,0.00054794,120]
[320692073,1711498255554,-500.0,0.00054794,120]
[320692074,1711498255563,-500.0,0.00054794,120]
[320692075,1711498255573,-500.0,0.00054794,120]
[320692076,1711498255582,-500.0,0.00054794,120]
[320692077,1711498255591,-1853.65,0.00054794,120]
[320692078,1711498255601,-500.0,0.00054794,120]
[320692079,1711498255611,-500.0,0.00054794,120]
[320692080,1711498255620,-500.0,0.00054794,120]
[320692081,1711498255630,-502.94692973,0.00054794,120]
[320692082,1711498255640,-500.0,0.00054794,120]
[320692083,1711498255649,-500.0,0.00054794,120]
[320692084,1711498255659,-500.0,0.00054794,120]
[320692085,1711498255670,-500.0,0.00054794,120]
[320692086,1711498255679,-500.0,0.00054794,120]
[320692087,1711498255689,-500.0,0.00054794,120]
[320692088,1711498255699,-500.0,0.00054794,120]
[320692089,1711498255709,-500.0,0.00054794,120]
[320692090,1711498255718,-500.0,0.00054794,120]
[320692091,1711498255727,-1000.0,0.00054794,120]
[320692092,1711498255737,-501.18662485,0.00054794,120]
[320692093,1711498255746,-500.0,0.00054794,120]
[320692094,1711498255756,-500.0,0.00054794,120]
[320692095,1711498255765,-500.0,0.00054794,120]
[320692096,1711498255776,-500.0,0.00054794,120]
[320692097,1711498255786,-500.0,0.00054794,120]
[320692098,1711498255795,-500.0,0.00054794,120]
[320692099,1711498255805,-500.0,0.00054794,120]
[320692100,1711498255814,-500.0,0.00054794,120]
[320692101,1711498255823,-500.0,0.00054794,120]
[320692102,1711498255833,-500.0,0.00054794,120]
[320692103,1711498255843,-503.24528335,0.00054794,120]
[320692104,1711498255853,-500.0,0.00054794,120]
[320692105,1711498255863,-500.0,0.00054794,120]
[320692106,1711498255873,-500.0,0.00054794,120]
[320692107,1711498255882,-500.0,0.00054794,120]
[320692108,1711498255891,-500.0,0.00054794,120]
[320692109,1711498255900,-500.0,0.00054794,120]
[320692110,1711498255910,-500.0,0.00054794,120]
[320692111,1711498255919,-500.0,0.00054794,120]
[320692112,1711498255929,-500.0,0.00054794,120]
[320692113,1711498255938,-500.0,0.00054794,120]
[320692114,1711498255947,-500.0,0.00054794,120]
[320692115,1711498255957,-500.0,0.00054794,120]
[320692116,1711498255966,-500.0,0.00054794,120]
[320692117,1711498255975,-500.0,0.00054794,120]
[320692118,1711498255985,-1593.81,0.00054794,120]
[320692119,1711498255994,-500.0,0.00054794,120]
[320692120,1711498256003,-500.0,0.00054794,120]
[320692121,1711498256013,-500.0,0.00054794,120]
[320692122,1711498256022,-3858.73,0.00054794,120]
[320692123,1711498256031,-361.92733814,0.00054794,120]
[320692124,1711498256044,-500.0,0.00054794,120]
[320692125,1711498256054,-500.0,0.00054794,120]
[320692126,1711498256063,-504.02038634,0.00054794,120]
[320692127,1711498256072,-846.01,0.00054794,120]
[320692128,1711498256082,-500.0,0.00054794,120]
[320692129,1711498256091,-500.0,0.00054794,120]
[320692130,1711498256101,-500.0,0.00054794,120]
[320692131,1711498256110,-500.0,0.00054794,120]
[320692132,1711498256120,-500.0,0.00054794,120]
[320692133,1711498256130,-500.0,0.00054794,120]
[320692134,1711498256139,-500.0,0.00054794,120]
[320692135,1711498256149,-500.0,0.00054794,120]
[320692136,1711498256158,-662.02,0.00054794,120]
[320692137,1711498256168,-500.0,0.00054794,120]
[320692138,1711498256177,-518.93,0.00054794,120]
[320692139,1711498256187,-500.0,0.00054794,120]
[320692140,1711498256197,-500.0,0.00054794,60]
[320692141,1711498256206,-3139.42,0.00054794,120]
[320692142,1711498256215,-500.0,0.00054794,120]
[320692143,1711498256225,-500.0,0.00054794,120]
[320692144,1711498256234,-500.0,0.00054794,120]
[320692145,1711498256243,-500.0,0.00054794,120]
[320692146,1711498256253,-500.0,0.00054794,120]
[320692147,1711498256263,-500.0,0.00054794,120]
[320692148,1711498256273,-500.0,0.00054794,120]
[320692149,1711498256282,-500.0,0.00054794,120]
[320692150,1711498256293,-500.0,0.00054794,120]
[320692151,1711498256302,-500.0,0.00054794,120]
[320692152,1711498256312,-310.97068656,0.00054794,120]
[320692153,1711498256322,-500.0,0.00054794,120]
[320692154,1711498256331,-503.21230004,0.00054794,120]
[320692155,1711498256341,-500.0,0.00054794,120]
[320692156,1711498256350,-500.0,0.00054794,120]
[320692157,1711498256359,-500.0,0.00054794,120]
[320692158,1711498256368,-500.0,0.00054794,120]
[320692159,1711498256378,-500.0,0.00054794,120]
[320692160,1711498256387,-547.61,0.00054794,120]
[320692161,1711498256397,-500.0,0.00054794,120]
[320692162,1711498256406,-500.0,0.00054794,120]
[320692163,1711498256415,-500.0,0.00054794,120]
[320692164,1711498256426,-500.0,0.00054794,120]
[320692165,1711498256436,-515.13418349,0.00054794,120]
[320692166,1711498256445,-500.0,0.00054794,120]
[320692167,1711498256455,-570.90420697,0.00054794,120]
[320692168,1711498256465,-500.0,0.00054794,120]
[320692169,1711498256474,-500.0,0.00054794,120]
[320692170,1711498256483,-800.0,0.00054795,120]
[320692171,1711498256493,-997.94012,0.00054795,120]
[320692172,1711498256503,-290.65,0.00054795,120]
[320692173,1711498256512,-151.032708,0.00054798,107]
[320692174,1711498256522,-176.23,0.000548,30]
[320692175,1711498256532,-151.96663146,0.00054819,60]
[320692176,1711498256542,-160.80380273,0.00054899,60]
[320692177,1711498256551,-155.0,0.00054927,4]
[320692178,1711498256561,-1000.454069,0.00055,120]
[320692179,1711498256697,-233.09,0.00055,14]
[320692180,1711498256707,-10186.70219207,0.00055,45]
[320692181,1711498256716,-501.19848525,0.000551,30]
[320692182,1711498256726,-2000.0,0.00055174,2]
[320692183,1711498256736,-935.6000827,0.00055204,4]
[320692184,1711498256746,-500.0,0.00055204,60]
[320692185,1711498256755,-216.7699383,0.00055205,120]
[320692186,1711498256765,-501.35099002,0.00055205,120]
[320692187,1711498256774,-501.47857467,0.00055205,120]
[320692188,1711498256784,-500.0,0.00055205,120]
[320692189,1711498256794,-282.93871987,0.00055205,120]
[320692190,1711498256805,-517.95,0.00055342,120]
[320692191,1711498256814,-500.0,0.00055342,120]
[320692192,1711498256824,-500.0,0.00055342,120]
[320692193,1711498256834,-500.0,0.00055342,120]
[320692194,1711498256843,-500.0,0.00055342,120]
[320692195,1711498256852,-500.0,0.00055342,120]
[320692196,1711498256862,-500.0,0.00055342,120]
[320692197,1711498256871,-540.65301535,0.00055342,120]
[320692198,1711498256880,-500.0,0.00055342,120]
[320692199,1711498256890,-500.0,0.00055342,120]
[320692200,1711498256899,-500.0,0.00055342,120]
[320692201,1711498256908,-500.0,0.00055342,120]
[320692202,1711498256917,-211.15711011,0.00055342,120]
[320692203,1711498256926,-500.0,0.00055342,120]
[320692204,1711498256936,-500.0,0.00055342,120]
[320692205,1711498256946,-500.0,0.00055342,120]
[320692206,1711498256955,-500.0,0.00055342,120]
[320692207,1711498256965,-500.0,0.00055342,120]
[320692208,1711498256974,-500.0,0.00055342,120]
[320692209,1711498256983,-500.0,0.00055342,120]
[320692210,1711498256993,-500.0,0.00055342,120]
[320692211,1711498257003,-500.0,0.00055342,120]
[320692212,1711498257014,-500.0,0.00055342,120]
[320692213,1711498257027,-500.0,0.00055342,120]
[320692214,1711498257036,-283.67,0.00055342,120]
[320692215,1711498257046,-1763.18,0.00055342,120]
[320692216,1711498257055,-500.0,0.00055342,120]
[320692217,1711498257066,-635.86,0.00055342,120]
[320692218,1711498257075,-646.76,0.00055342,120]
[320692219,1711498257084,-612.81877754,0.00055342,120]
[320692220,1711498257094,-500.0,0.00055342,120]
[320692221,1711498257103,-500.0,0.00055342,120]
[320692222,1711498257114,-500.0,0.00055342,120]
[320692223,1711498257124,-500.0,0.00055342,120]
[320692224,1711498257134,-270.14,0.00055342,120]
[320692225,1711498257144,-500.0,0.00055342,120]
[320692226,1711498257154,-500.0,0.00055342,120]
[320692227,1711498257164,-500.0,0.00055342,120]
[320692228,1711498257175,-500.0,0.00055342,21]
[320692229,1711498257186,-500.0,0.00055342,120]
[320692230,1711498257195,-500.0,0.00055342,120]
[320692231,1711498257207,-500.0,0.00055342,120]
[320692232,1711498257218,-500.0,0.00055342,120]
[320692233,1711498257227,-500.0,0.00055342,120]
[320692234,1711498257237,-500.0,0.00055342,120]
[320692235,1711498257246,-804.3,0.00055342,120]
[320692236,1711498257257,-500.0,0.00055342,120]
[320692237,1711498257266,-500.0,0.00055342,120]
[320692238,1711498257275,-1853.65,0.00055342,120]
[320692239,1711498257284,-500.0,0.00055342,120]
[320692240,1711498257294,-500.0,0.00055342,120]
[320692241,1711498257303,-500.0,0.00055342,120]
[320692242,1711498257313,-500.0,0.00055342,120]
[320692243,1711498257323,-500.0,0.00055342,120]
[320692244,1711498257332,-500.0,0.00055342,120]
[320692245,1711498257344,-500.0,0.00055342,120]
[320692246,1711498257356,-500.0,0.00055342,120]
[320692247,1711498257365,-500.0,0.00055342,120]
[320692248,1711498257375,-500.0,0.00055342,120]
[320692249,1711498257384,-500.0,0.00055342,120]
[320692250,1711498257395,-500.0,0.00055342,120]
[320692251,1711498257406,-500.0,0.00055342,120]
[320692252,1711498257415,-451.4787225,0.00055342,120]
[320692253,1711498257425,-500.0,0.00055342,120]
[320692254,1711498257435,-500.0,0.00055342,120]
[320692255,1711498257446,-500.0,0.00055342,120]
[320692256,1711498257455,-1593.81,0.00055342,120]
[320692257,1711498257464,-500.0,0.00055342,120]
[320692258,1711498257473,-3858.73,0.00055342,120]
[320692259,1711498257483,-500.0,0.00055342,120]
[320692260,1711498257492,-846.01,0.00055342,120]
[320692261,1711498257502,-500.0,0.00055342,120]
[320692262,1711498257510,-478.4,0.00055342,120]
[320692263,1711498257521,-662.02,0.00055342,120]
[320692264,1711498257531,-500.0,0.00055342,120]
[320692265,1711498257545,-3139.42,0.00055342,120]
[320692266,1711498257556,-500.0,0.00055342,120]
[320692267,1711498257566,-500.0,0.00055342,120]
[320692268,1711498257576,-500.0,0.00055342,120]
[320692269,1711498257586,-500.0,0.00055342,120]
[320692270,1711498257596,-547.61,0.00055342,120]
[320692271,1711498257606,-500.0,0.00055342,120]
[320692272,1711498257616,-512.28,0.00055342,120]
[320692273,1711498257626,-158.36,0.00055379,120]
[320692274,1711498257636,-152.15569369,0.0005542,120]
[320692275,1711498257646,-151.032708,0.00055498,108]
[320692276,1711498257655,-151.96663146,0.00055525,120]
[320692277,1711498257664,-152.15569369,0.00055562,120]
[320692278,1711498257674,-153.82,0.000557,8]
[320692279,1711498257683,-153.82,0.000557,8]
[320692280,1711498257693,-153.82,0.000557,8]
[320692281,1711498257702,-158.40053586,0.00055762,120]
[320692282,1711498257712,-151.032708,0.00055798,109]
[320692283,1711498257721,-157.74699847,0.00055828,120]
[320692284,1711498257730,-500.0,0.0005589,120]
[320692285,1711498257740,-280.87367551,0.0005589,120]
[320692286,1711498257749,-500.0,0.0005589,120]
[320692287,1711498257759,-500.0,0.0005589,120]
[320692288,1711498257768,-500.0,0.0005589,120]
[320692289,1711498257778,-500.0,0.0005589,120]
[320692290,1711498257787,-500.0,0.0005589,120]
[320692291,1711498257797,-500.0,0.0005589,120]
[320692292,1711498257806,-500.0,0.0005589,120]
[320692293,1711498257815,-500.0,0.0005589,120]
[320692294,1711498257824,-500.0,0.0005589,120]
[320692295,1711498257834,-500.0,0.0005589,120]
[320692296,1711498257843,-500.0,0.0005589,120]
[320692297,1711498257852,-393.02,0.0005589,120]
[320692298,1711498257862,-500.0,0.0005589,120]
[320692299,1711498257871,-610.73,0.0005589,120]
[320692300,1711498257881,-500.0,0.0005589,120]
[320692301,1711498257890,-500.0,0.0005589,120]
[320692302,1711498257900,-500.0,0.0005589,120]
[320692303,1711498257909,-500.0,0.0005589,120]
[320692304,1711498257918,-1763.18,0.0005589,120]
[320692305,1711498257928,-500.0,0.0005589,120]
[320692306,1711498257937,-635.86,0.0005589,120]
[320692307,1711498257946,-500.0,0.0005589,120]
[320692308,1711498257955,-500.0,0.0005589,120]
[320692309,1711498257964,-500.0,0.0005589,120]
[320692310,1711498257974,-500.0,0.0005589,120]